bitfinex/quotes_ETHUSD_20240823
["timestamp","ask_amount","ask_price","bid_price","bid_amount"]
[1724372155662,3.4336577,2630.7,2630.4,3.8083791]
[1724372157120,3.4336577,2630.7,2630.4,7.6100491]
[1724372157459,3.4336577,2630.7,2630.4,4.86449201]
[1724372157705,1.1377577,2630.7,2630.5,3.80155]
[1724372158026,3.3896577,2630.9,2630.4,4.86449201]
[1724372158227,3.3896577,2630.9,2630.5,3.80145]
[1724372160089,3.3896577,2630.9,2630.4,4.86456201]
[1724372160408,1.1377577,2630.7,2630.4,0.0067091]
[1724372161783,2.2798,2630.6,2630.4,0.0067091]
[1724372162303,1.1377577,2630.5,2630.4,0.0067091]
[1724372163097,2.2798,2630.6,2630.4,0.0067091]
[1724372163283,3.4175577,2630.6,2630.4,0.0067091]
[1724372165722,2.3079,2630.5,2630.4,0.0067091]
[1724372171212,5.3079,2630.5,2630.4,0.0067091]
[1724372173250,2.3153,2630.4,2629.2,3.80334]
[1724372173545,1.1377577,2629.4,2629.2,3.80334]
[1724372173949,3.4530577,2629.6,2629.2,3.80334]
[1724372174116,3.4530577,2629.6,2629.2,4.183674]
[1724372174517,3.4530577,2629.6,2629.3,3.80321]
[1724372177020,3.4530577,2629.6,2629.1,3.80343]
[1724372177277,1.1377577,2629.4,2629.1,3.80357]
[1724372178521,3.4530577,2629.6,2629.2,3.80341]
[1724372179140,3.4530577,2629.6,2629.3,3.80328]
[1724372179926,1.1377577,2629.6,2629.3,3.80328]
[1724372180662,3.6343577,2629.8,2629.4,3.80311]
[1724372182592,3.6343577,2629.8,2629.4,3.80305]
[1724372182728,1.1377577,2629.8,2629.4,6.449355]
[1724372183263,1.1377577,2629.8,2629.4,4.183355]
[1724372186276,1.1377577,2629.8,2629.5,3.80298]
[1724372186566,3.5865577,2630.0,2629.5,3.80298]
[1724372186870,3.5865577,2630.0,2629.5,4.6016135]
[1724372187667,1.1377577,2629.8,2629.5,0.7986335]
[1724372187966,1.1377577,2629.8,2629.4,0.380305]
[1724372188560,1.1377577,2629.8,2629.4,4.183435]
[1724372188933,1.1377577,2629.8,2629.5,3.80298]
[1724372190364,1.1377577,2629.8,2629.6,3.80278]
[1724372192707,1.1377577,2629.8,2629.6,7.60555]
[1724372192856,1.1377577,2630.0,2629.7,0.760555]
[1724372193957,1.1377577,2630.0,2629.7,4.563265]
[1724372200316,1.1377577,2630.0,2629.7,3.80271]
[1724372209362,1.1377577,2630.3,2630.0,3.80228]
[1724372209533,2.4093,2630.4,2630.1,3.80213]
[1724372210135,3.4974577,2630.7,2630.2,3.80189]
[1724372210346,2.3597,2630.7,2630.4,3.80166]
[1724372210542,6.5274577,2630.9,2630.4,3.80166]
[1724372211135,1.1377577,2630.7,2630.4,3.80166]
[1724372212259,2.3597,2630.9,2630.4,3.80166]
[1724372212469,1.1377577,2630.7,2630.3,3.80171]
[1724372212661,1.1377577,2630.7,2630.4,1.2100842]
[1724372213177,1.1377577,2630.7,2630.4,5.0117742]
[1724372213741,1.1377577,2630.7,2630.4,1.2100842]
[1724372213948,1.1377577,2630.7,2630.4,5.0117542]
[1724372214194,1.1377577,2630.7,2630.4,1.2100842]
[1724372215038,1.1377577,2630.7,2630.4,5.0117442]
[1724372215233,1.1377577,2630.7,2630.5,0.88134542]
[1724372218355,1.1377577,2630.7,2630.5,4.68287542]
[1724372219883,1.1377577,2630.9,2630.5,4.68287542]
[1724372220076,3.0,2631.4,2630.7,3.80126]
[1724372220077,1.1377577,2631.3,2630.7,3.80126]
[1724372220261,1.1377577,2631.3,2630.9,3.8009]
[1724372221145,1.1377577,2631.3,2630.9,7.6018]
[1724372221681,1.1377577,2631.3,2630.9,3.8009]
[1724372222278,2.4835,2631.0,2630.6,4.39070596]
[1724372222484,1.1377577,2630.9,2630.7,0.55]
[1724372222678,1.1377577,2630.9,2630.6,3.80141]
[1724372223385,1.1377577,2630.7,2630.6,3.80141]
[1724372223560,1.1377577,2630.7,2630.6,0.55]
[1724372223762,1.1377577,2630.7,2630.4,3.80168]
[1724372223959,1.1377577,2630.7,2630.4,6.050556]
[1724372224165,2.3217,2630.6,2630.4,6.050556]
[1724372224362,1.1377577,2630.5,2630.4,3.80168]
[1724372224686,1.1377577,2630.5,2630.0,3.8022]
[1724372224856,1.1377577,2630.3,2630.0,3.8022]
[1724372225293,1.1377577,2630.3,2630.1,3.80204]
[1724372226476,2.3217,2630.6,2630.2,3.80199]
[1724372227389,2.3217,2630.6,2630.1,3.80204]
[1724372229249,2.3513,2630.5,2629.7,3.80262]
[1724372229444,2.3513,2630.5,2629.9,3.8024]
[1724372230555,2.3513,2630.5,2629.5,3.8029]
[1724372230556,2.3584,2630.2,2629.5,3.8029]
[1724372230756,0.50903988,2630.1,2629.7,3.80269]
[1724372231086,2.3584,2630.2,2629.8,3.80255]
[1724372233406,2.3584,2630.2,2629.7,3.80271]
[1724372238285,2.3584,2630.2,2629.6,3.80284]
[1724372239450,2.3584,2630.2,2629.7,3.8027]
[1724372239653,2.86743988,2630.2,2629.7,3.8027]
[1724372242755,2.86743988,2630.2,2629.6,3.80285]
[1724372244376,2.73199875,2630.0,2629.2,7.36]
[1724372244679,2.73199875,2629.7,2629.0,3.8037]
[1724372244903,10.43,2630.5,2628.4,14.7203]
[1724372244904,2.4602,2629.3,2628.7,3.80409]
[1724372245076,0.51921987,2629.2,2628.5,11.16433]
[1724372245271,2.4602,2629.1,2628.6,3.80422]
[1724372245464,2.4602,2629.1,2628.5,11.16433]
[1724372246706,2.4602,2629.1,2628.6,3.80429]
[1724372247017,2.4602,2629.1,2628.5,7.36]
[1724372247332,2.36,2629.0,2628.5,7.36]
[1724372248214,2.36,2629.0,2628.3,3.80464]
[1724372248866,2.36,2629.0,2628.4,3.80458]
[1724372251512,2.36,2629.0,2628.5,3.80444]
[1724372251727,2.36,2629.0,2628.7,3.8041]
[1724372252130,2.36,2629.0,2628.5,7.60877]
[1724372252939,2.36,2629.0,2628.5,3.80433]
[1724372253533,2.36,2629.0,2628.6,3.80429]
[1724372253732,2.36,2629.0,2628.7,3.80415]
[1724372254294,2.36,2629.0,2628.7,4.564998]
[1724372256262,2.36,2629.0,2628.7,3.80415]
[1724372257508,2.36,2629.0,2628.8,3.80393]
[1724372258405,2.36,2629.0,2628.7,3.80406]
[1724372260119,2.36,2629.0,2628.7,7.60811]
[1724372263550,2.36,2629.0,2628.8,3.804]
[1724372263756,2.36,2629.0,2628.8,4.564805]
[1724372264227,2.2785,2629.2,2628.9,3.80387]
[1724372264555,2.2785,2629.2,2629.0,4.35364]
[1724372270549,2.2785,2629.2,2629.1,3.80358]
[1724372271071,0.006684,2629.3,2629.1,3.80358]
[1724372272951,0.006684,2629.3,2629.1,3.8035]
[1724372273459,0.006684,2629.3,2629.0,4.35371]
[1724372274041,1.13945115,2629.2,2629.0,4.35371]
[1724372277266,2.431,2629.1,2628.8,3.804]
[1724372279061,2.431,2629.1,2628.9,3.80386]
[1724372279585,2.431,2629.1,2628.9,7.60766]
[1724372279758,2.431,2629.1,2628.9,3.8038]
[1724372280171,2.431,2629.1,2629.0,3.80372]
[1724372281492,1.13945115,2629.2,2629.0,3.80372]
[1724372284195,2.437684,2629.3,2629.0,0.760752]
[1724372284358,2.437684,2629.3,2629.2,8.74631115]
[1724372284359,0.006684,2629.3,2629.2,8.74631115]
[1724372284556,0.006684,2629.3,2629.2,8.15686]
[1724372285695,0.006684,2629.3,2629.2,4.35343]
[1724372285995,0.006684,2629.3,2629.0,3.80367]
[1724372285996,2.3498,2629.2,2629.0,7.6073]
[1724372286367,2.3498,2629.2,2629.1,3.80358]
[1724372286564,0.006684,2629.3,2629.1,3.80358]
[1724372287494,0.006684,2629.3,2628.9,3.80376]
[1724372287495,3.48925115,2629.2,2628.9,3.80376]
[1724372288957,2.3498,2629.2,2629.0,3.80363]
[1724372290900,0.006684,2629.3,2629.0,3.80363]
[1724372295612,3.39035115,2629.2,2629.0,3.80363]
[1724372296343,3.39035115,2629.2,2628.8,3.80389]
[1724372296538,0.006684,2629.3,2628.7,3.80406]
[1724372296539,1.13945115,2629.0,2628.7,3.80406]
[1724372296829,1.13945115,2628.8,2628.6,3.8043]
[1724372297804,1.13945115,2628.8,2628.7,3.80416]
[1724372298578,2.2697,2628.9,2628.7,3.80416]
[1724372299099,2.2697,2628.9,2628.7,7.60832]
[1724372299913,2.2697,2628.9,2628.7,3.80416]
[1724372302022,2.2697,2628.9,2628.7,7.60824]
[1724372302319,2.2697,2628.9,2628.7,3.80408]
[1724372302522,2.2697,2628.9,2628.8,3.80401]
[1724372304403,2.3353,2629.2,2628.8,4.564819]
[1724372304627,2.3353,2629.2,2628.8,3.80401]
[1724372305490,2.3353,2629.2,2629.0,3.80372]
[1724372310326,0.006684,2629.3,2629.1,3.80347]
[1724372311235,0.006684,2629.3,2629.2,3.80343]
[1724372313729,0.006684,2629.3,2629.2,7.60686]
[1724372313958,0.006684,2629.3,2629.2,8.601416]
[1724372320861,0.006684,2629.3,2629.2,9.151416]
[1724372322165,0.006684,2629.3,2629.2,12.954846]
[1724372322372,0.006684,2629.3,2629.2,15.447546]
[1724372325656,0.006684,2629.3,2629.2,9.151416]
[1724372327641,0.006684,2629.3,2629.2,8.15686]
[1724372329058,0.006684,2629.3,2629.2,3.80343]
[1724372329437,0.006684,2629.3,2629.0,3.80364]
[1724372329438,1.14541858,2629.3,2629.0,3.80364]
[1724372329632,1.14541858,2629.3,2629.1,3.80356]
[1724372329868,0.006684,2629.3,2629.1,7.60712]
[1724372330243,0.006684,2629.3,2629.2,3.80343]
[1724372331031,0.006684,2629.3,2629.2,7.60686]
[1724372331270,0.006684,2629.3,2629.2,8.367546]
[1724372331748,0.006684,2629.3,2629.2,8.917546]
[1724372333082,0.006684,2629.3,2629.2,1.310686]
[1724372337351,0.006684,2629.3,2628.6,3.53683458]
[1724372337585,2.324,2629.2,2628.4,1.13873458]
[1724372337749,1.13873458,2629.1,2628.3,2.3981]
[1724372337964,2.4002,2628.8,2628.1,6.179]
[1724372338294,2.4002,2628.8,2628.0,4.94383458]
[1724372338295,1.13873458,2628.7,2628.2,1.11228346]
[1724372338452,1.13873458,2628.7,2628.0,3.80509]
[1724372338649,1.13873458,2628.5,2627.9,2.374]
[1724372338947,1.13873458,2628.3,2627.6,7.61128]
[1724372339151,1.13873458,2628.3,2627.7,3.80558]
[1724372339371,1.13873458,2628.3,2627.8,0.380558]
[1724372340352,1.13873458,2628.1,2627.8,0.380558]
[1724372340716,2.4002,2628.4,2627.3,3.81403582]
[1724372341189,2.4407,2628.3,2627.3,0.00796582]
[1724372341390,3.0,2628.6,2627.3,0.00796582]
[1724372341391,2.4407,2628.0,2627.3,0.00796582]
[1724372341889,2.4407,2627.9,2627.3,0.00796582]
[1724372344955,2.4407,2627.9,2627.2,4.35623]
[1724372345659,2.4407,2627.9,2627.3,3.80608]
[1724372346055,2.4407,2627.9,2627.4,7.68810518]
[1724372346297,2.4407,2627.9,2627.4,3.88207518]
[1724372346702,2.4407,2627.9,2627.5,3.80587]
[1724372347072,2.4407,2627.9,2627.3,0.435623]
[1724372347274,2.4407,2627.9,2627.4,0.55]
[1724372347492,2.4407,2627.9,2627.6,3.80564]
[1724372347785,2.4407,2627.9,2627.6,7.61129]
[1724372348108,2.4407,2627.9,2627.8,3.80546]
[1724372349628,2.4407,2627.9,2627.8,7.61092]
[1724372349983,2.36,2628.6,2628.0,3.80517]
[1724372350800,2.36,2628.6,2628.1,3.80493]
[1724372352325,2.36,2628.6,2628.5,3.80445]
[1724372352485,3.13226761,2628.6,2628.5,3.80445]
[1724372353214,2.36,2628.6,2628.5,7.6089]
[1724372358247,2.3205,2629.2,2629.0,3.80365]
[1724372358531,2.3205,2629.2,2629.1,7.60716]
[1724372365103,6.1617,2629.5,2629.4,3.80314]
[1724372365307,2.2517,2629.7,2629.6,7.6057]
[1724372372879,2.3156,2630.2,2629.8,3.80243]
[1724372373244,2.3156,2630.2,2629.9,3.80233]
[1724372373676,2.3156,2630.2,2630.0,3.8022]
[1724372374482,2.3156,2630.2,2629.9,3.80233]
[1724372375162,2.3156,2630.2,2629.9,7.60466]
[1724372375675,2.3156,2630.2,2629.9,3.80233]
[1724372376894,2.3156,2630.2,2629.9,7.60468]
[1724372377080,2.3156,2630.2,2629.9,3.80233]
[1724372377286,2.3156,2630.2,2630.0,3.80228]
[1724372377483,2.3156,2630.2,2630.1,3.80213]
[1724372379667,2.3156,2630.2,2630.0,3.80224]
[1724372379868,2.3156,2630.2,2629.9,3.80234]
[1724372381682,2.3156,2630.2,2630.0,3.80225]
[1724372382897,2.4116,2630.5,2630.2,3.80189]
[1724372384209,2.4116,2630.5,2630.1,3.80213]
[1724372384441,2.4116,2630.5,2630.2,3.80198]
[1724372384904,2.4116,2630.5,2630.3,3.80184]
[1724372386045,2.4116,2630.5,2630.3,3.80177]
[1724372386207,2.4116,2630.5,2630.4,3.8017]
[1724372386548,2.4116,2630.5,2630.2,3.80188]
[1724372387322,2.4116,2630.5,2630.4,3.8017]
[1724372387869,2.4116,2630.5,2630.2,3.80186]
[1724372388807,2.418284,2630.5,2630.2,3.80186]
[1724372389243,2.418284,2630.5,2630.2,7.60377]
[1724372389451,2.418284,2630.5,2630.3,3.80182]
[1724372391141,2.418284,2630.5,2630.4,3.8017]
[1724372391632,0.006684,2630.5,2630.4,8.363756]
[1724372391935,0.006684,2630.5,2630.4,10.745856]
[1724372392121,0.006684,2630.5,2630.4,14.547556]
[1724372392325,0.006684,2630.5,2630.4,15.097556]
[1724372400836,0.006684,2630.5,2630.4,18.899256]
[1724372403225,0.006684,2630.5,2630.4,15.097556]
[1724372404734,0.006684,2630.5,2630.4,18.899256]
[1724372404915,0.006684,2630.5,2630.4,21.899256]
[1724372406518,0.006684,2630.5,2630.4,18.097556]
[1724372406709,0.006684,2630.5,2630.4,15.715456]
[1724372407640,0.006684,2630.5,2630.4,12.715456]
[1724372409763,0.006684,2630.5,2630.4,15.134356]
[1724372409965,0.006684,2630.5,2630.4,18.936056]
[1724372410104,0.006684,2630.5,2630.4,21.936056]
[1724372410305,0.006684,2630.5,2630.4,18.134356]
[1724372410503,0.006684,2630.5,2630.4,21.936056]
[1724372411801,0.006684,2630.5,2630.4,18.134356]
[1724372412423,0.006684,2630.5,2630.4,21.936056]
[1724372412667,0.006684,2630.5,2630.4,18.134356]
[1724372413896,0.006684,2630.5,2630.4,21.936056]
[1724372414198,0.006684,2630.5,2630.4,18.134356]
[1724372414353,0.006684,2630.5,2630.4,21.936056]
[1724372414740,0.006684,2630.5,2630.4,18.134356]
[1724372415995,0.006684,2630.5,2630.4,15.715456]
[1724372417294,0.006684,2630.5,2630.4,16.31021433]
[1724372418980,0.006684,2630.5,2630.4,15.715456]
[1724372419396,0.006684,2630.5,2630.4,16.31024213]
[1724372420483,0.006684,2630.5,2630.4,17.44782391]
[1724372422771,0.006684,2630.5,2630.4,21.24952391]
[1724372423084,4e-06,2630.6,2630.5,25.74342843]
[1724372423317,4e-06,2630.6,2630.5,31.87026102]
[1724372423492,0.05,2631.7,2631.6,3.79996]
[1724372424371,0.05,2631.7,2631.6,7.59992]
[1724372424693,0.05,2631.7,2631.6,3.79996]
[1724372425911,0.05,2631.7,2631.6,7.59992]
[1724372427592,2.3924,2631.8,2631.7,3.79982]
[1724372427776,2.3924,2631.8,2631.7,7.59964]
[1724372428708,2.4801,2632.2,2632.0,3.79926]
[1724372428969,2.4801,2632.2,2632.1,7.59848]
[1724372430435,2.4801,2632.2,2632.1,3.79924]
[1724372435722,2.4801,2632.2,2632.0,3.79937]
[1724372435919,2.4801,2632.2,2631.9,3.79953]
[1724372435920,2.4801,2632.2,2632.1,3.79924]
[1724372436551,2.4801,2632.2,2632.1,7.59848]
[1724372436962,2.4801,2632.2,2631.6,11.15993]
[1724372436963,2.4801,2632.4,2632.2,7.5982]
[1724372438134,0.05,2632.5,2632.2,8.35802]
[1724372438335,0.05,2632.5,2632.2,8.1482]
[1724372438765,0.08368716,2632.3,2632.2,7.5982]
[1724372438958,2.5301,2632.3,2632.2,7.5982]
[1724372440172,2.5301,2632.3,2632.0,3.79926]
[1724372440378,2.5301,2632.3,2632.1,3.79923]
[1724372440668,2.5301,2632.3,2632.2,3.7991]
[1724372441248,2.5301,2632.3,2632.2,7.5982]
[1724372441876,2.5301,2632.3,2632.2,3.7991]
[1724372442249,2.5301,2632.3,2632.1,3.79916]
[1724372443433,0.05,2632.3,2632.2,7.5982]
[1724372444443,0.05,2632.3,2632.2,11.3973]
[1724372445109,0.05,2632.3,2632.2,7.5982]
[1724372445278,2.5127,2632.3,2632.1,3.79917]
[1724372445443,2.5127,2632.3,2632.1,3.79915]
[1724372446470,2.5127,2632.3,2632.2,3.7991]
[1724372448979,2.5127,2632.3,2632.2,7.5982]
[1724372449145,0.05,2632.3,2632.2,12.15712]
[1724372450175,0.05,2632.3,2632.2,8.35802]
[1724372461194,0.05,2632.3,2632.2,7.5982]
[1724372464153,0.04203418,2632.3,2632.2,7.5982]
[1724372465431,0.04203418,2632.5,2632.4,3.79881]
[1724372465637,0.07635819,2632.5,2632.4,3.79881]
[1724372474193,0.07635819,2632.5,2632.4,7.59762]
[1724372474540,0.07635819,2632.5,2632.4,3.79881]
[1724372477703,0.07635819,2632.5,2631.9,9.6481]
[1724372477704,2.3395,2632.4,2631.9,7.36]
[1724372477920,2.3395,2632.2,2631.9,7.36]
[1724372478057,2.3395,2632.2,2632.0,3.79938]
[1724372478261,1.13634122,2632.1,2631.9,7.36]
[1724372478455,1.13634122,2632.1,2631.9,11.1595]
[1724372479100,2.3395,2632.2,2632.0,3.79937]
[1724372479803,2.4579,2632.0,2631.9,7.36]
[1724372480965,2.4579,2632.0,2631.8,3.79967]
[1724372481579,2.4579,2632.0,2631.9,3.79953]
[1724372483067,2.4822,2632.2,2632.1,3.79924]
[1724372483269,2.4822,2632.4,2632.3,3.79895]
[1724372483463,0.04203418,2632.5,2632.3,3.79895]
[1724372483907,0.04203418,2632.5,2632.4,3.79881]
[1724372484079,0.04203418,2632.5,2632.4,7.59762]
[1724372484405,0.04203418,2632.5,2632.4,8.357382]
[1724372485270,0.04203418,2632.5,2632.4,12.156192]
[1724372485468,0.04203418,2632.5,2632.4,8.357382]
[1724372485891,0.04203418,2632.5,2632.4,8.907382]
[1724372486575,0.04203418,2632.5,2632.4,8.357382]
[1724372487770,0.07614131,2632.5,2632.4,8.357382]
[1724372488290,0.04203418,2632.5,2632.4,8.357382]
[1724372488894,0.04203418,2632.5,2632.4,8.907382]
[1724372489851,0.04203418,2632.5,2632.4,12.706192]
[1724372490356,0.04203418,2632.5,2632.4,8.907382]
[1724372490647,0.04203418,2632.5,2632.4,12.706192]
[1724372491191,0.04203418,2632.5,2632.4,8.907382]
[1724372493351,0.04203418,2632.5,2632.4,12.706192]
[1724372494512,0.04203418,2632.5,2632.4,8.907382]
[1724372494702,0.04203418,2632.5,2632.4,12.706192]
[1724372496505,4.18e-06,2632.5,2632.4,21.996702]
[1724372496711,4.18e-06,2632.7,2632.6,15.19408]
[1724372496947,4.18e-06,2632.7,2632.6,23.21612342]
[1724372497156,4.18e-06,2632.7,2632.6,19.41760342]
[1724372497322,4.18e-06,2632.7,2632.6,18.82327026]
[1724372497717,4.18e-06,2632.7,2632.6,17.13692904]
[1724372497918,4.18e-06,2632.7,2632.6,14.13692904]
[1724372498231,4.18e-06,2632.7,2632.6,15.02360122]
[1724372498430,4.18e-06,2632.7,2632.6,13.88726]
[1724372498729,4.18e-06,2632.7,2632.6,15.02360122]
[1724372499130,4.18e-06,2632.7,2632.6,12.53190122]
[1724372499862,4.18e-06,2632.7,2632.6,11.39556]
[1724372500058,4.18e-06,2632.7,2632.6,12.72472632]
[1724372500412,4.18e-06,2632.7,2632.6,8.92620632]
[1724372500728,2.49080418,2632.7,2632.6,8.92620632]
[1724372503355,4.18e-06,2632.7,2632.6,8.92620632]
[1724372503937,4.18e-06,2632.7,2632.6,12.72472632]
[1724372505751,4.18e-06,2632.7,2632.6,13.27472632]
[1724372506678,4.18e-06,2632.7,2632.6,13.45006732]
[1724372507765,4.18e-06,2632.7,2632.6,17.24858732]
[1724372509196,4.18e-06,2632.7,2632.6,20.24858732]
[1724372514158,4.18e-06,2632.7,2632.6,13.27472632]
[1724372514407,4.18e-06,2632.7,2632.6,12.72472632]
[1724372515676,4.18e-06,2632.7,2632.6,13.27472632]
[1724372516078,4.18e-06,2632.7,2632.6,17.07324632]
[1724372516274,4.18e-06,2632.7,2632.6,17.62281642]
[1724372516894,4.18e-06,2632.7,2632.6,17.07324632]
[1724372517362,4.18e-06,2632.7,2632.6,17.6675341]
[1724372517609,4.18e-06,2632.7,2632.6,20.6675341]
[1724372518814,4.18e-06,2632.7,2632.6,20.07324632]
[1724372519114,4.18e-06,2632.7,2632.6,20.66755569]
[1724372522068,4.18e-06,2632.7,2632.6,23.06855569]
[1724372522514,4.18e-06,2632.7,2632.6,24.2039801]
[1724372524983,4.18e-06,2632.7,2632.6,24.20389891]
[1724372526201,4.18e-06,2632.7,2632.6,23.60967073]
[1724372526481,4.18e-06,2632.7,2632.6,24.20390681]
[1724372528442,4.18e-06,2632.7,2632.6,21.80290681]
[1724372529441,4.18e-06,2632.7,2632.6,21.20867073]
[1724372529639,4.18e-06,2632.7,2632.6,21.80290902]
[1724372529811,4.18e-06,2632.7,2632.6,21.80290504]
[1724372531105,4.18e-06,2632.7,2632.6,20.66748063]
[1724372531519,4.18e-06,2632.7,2632.6,21.80290504]
[1724372531731,4.18e-06,2632.7,2632.6,24.20490504]
[1724372531933,4.18e-06,2632.7,2632.6,24.75447514]
[1724372532326,4.18e-06,2632.7,2632.6,28.55299514]
[1724372532507,4.18e-06,2632.7,2632.6,29.58731605]
[1724372533045,4.18e-06,2632.7,2632.6,30.90798934]
[1724372533550,4.18e-06,2632.7,2632.6,34.91798934]
[1724372533749,4.18e-06,2632.7,2632.6,34.91797935]
[1724372534158,4.18e-06,2632.7,2632.6,33.04771262]
[1724372534337,4.18e-06,2632.7,2632.6,34.36840899]
[1724372534536,4.18e-06,2632.7,2632.6,33.04771262]
[1724372535056,4.18e-06,2632.7,2632.6,34.36840763]
[1724372535242,4.18e-06,2632.7,2632.6,33.04771262]
[1724372535424,4.18e-06,2632.7,2632.6,26.07676686]
[1724372535773,4.18e-06,2632.7,2632.6,21.25287171]
[1724372536062,4.18e-06,2632.7,2632.6,16.3189273]
[1724372536630,4.18e-06,2632.7,2632.6,21.25287171]
[1724372536861,4.18e-06,2632.7,2632.6,21.80287171]
[1724372537038,4.18e-06,2632.7,2632.6,30.71990757]
[1724372537243,4.18e-06,2632.7,2632.6,31.19527775]
[1724372537427,4.18e-06,2632.7,2632.6,32.51599428]
[1724372537633,4.18e-06,2632.7,2632.6,32.87096381]
[1724372538214,4.18e-06,2632.7,2632.6,31.96642418]
[1724372538455,4.18e-06,2632.7,2632.6,31.18595608]
[1724372539967,4.18e-06,2632.7,2632.6,30.83099977]
[1724372540141,4.18e-06,2632.7,2632.6,31.18600096]
[1724372540754,4.18e-06,2632.7,2632.6,29.15706321]
[1724372540934,4.18e-06,2632.7,2632.6,27.17600096]
[1724372541563,4.18e-06,2632.7,2632.6,29.33242286]
[1724372541973,4.18e-06,2632.7,2632.6,33.34242286]
[1724372542995,4.18e-06,2632.7,2632.6,29.93676961]
[1724372543172,4.18e-06,2632.7,2632.6,32.98744835]
[1724372543477,4.18e-06,2632.7,2632.6,33.34244113]
[1724372543674,4.18e-06,2632.7,2632.6,29.33244113]
[1724372544175,4.18e-06,2632.7,2632.6,29.33244405]
[1724372546477,4.18e-06,2632.7,2632.6,28.73818985]
[1724372547052,4.18e-06,2632.7,2632.6,28.73819293]
[1724372547768,4.18e-06,2632.7,2632.6,32.74819293]
[1724372548073,4.18e-06,2632.7,2632.6,26.75710287]
[1724372548275,4.18e-06,2632.7,2632.6,25.43638634]
[1724372548576,4.18e-06,2632.7,2632.6,26.75717753]
[1724372548741,4.18e-06,2632.7,2632.6,22.95865753]
[1724372548938,4.18e-06,2632.7,2632.6,21.28289711]
[1724372549703,4.18e-06,2632.7,2632.6,21.63805002]
[1724372550089,4.18e-06,2632.7,2632.6,21.63806539]
[1724372550289,4.18e-06,2632.7,2632.6,22.95886087]
[1724372552207,4.18e-06,2632.7,2632.6,24.94002644]
[1724372552410,4.18e-06,2632.7,2632.6,25.48959654]
[1724372552911,4.18e-06,2632.7,2632.6,25.48962092]
[1724372553669,4.18e-06,2632.7,2632.6,22.18764886]
[1724372553874,4.18e-06,2632.7,2632.6,25.48958019]
[1724372555510,4.18e-06,2632.7,2632.6,23.50842139]
[1724372556030,4.18e-06,2632.7,2632.6,22.95885129]
[1724372556183,4.18e-06,2632.7,2632.6,21.28292149]
[1724372556719,4.18e-06,2632.7,2632.6,20.80753308]
[1724372556925,4.18e-06,2632.7,2632.6,21.28295217]
[1724372559019,4.18e-06,2632.7,2632.6,21.63808501]
[1724372559331,4.18e-06,2632.7,2632.6,21.6380813]
[1724372559491,4.18e-06,2632.7,2632.6,22.95891725]
[1724372559898,4.18e-06,2632.7,2632.6,22.95891538]
[1724372560321,4.18e-06,2632.7,2632.6,22.95888314]
[1724372560525,4.18e-06,2632.7,2632.6,24.09441947]
[1724372561543,4.18e-06,2632.7,2632.6,26.07565965]
[1724372563238,4.18e-06,2632.7,2632.6,25.24511629]
[1724372563413,4.18e-06,2632.7,2632.6,25.72055895]
[1724372563716,4.18e-06,2632.7,2632.6,26.07569025]
[1724372566252,4.18e-06,2632.7,2632.6,24.09444256]
[1724372566656,4.18e-06,2632.7,2632.6,24.09449285]
[1724372567554,4.18e-06,2632.7,2632.6,26.07577294]
[1724372568132,4.18e-06,2632.7,2632.6,26.07577761]
[1724372569965,4.18e-06,2632.7,2632.6,25.24518596]
[1724372570173,4.18e-06,2632.7,2632.6,25.720595]
[1724372570466,4.18e-06,2632.7,2632.6,25.95556204]
[1724372570640,4.18e-06,2632.7,2632.6,26.43097171]
[1724372571165,2.46770418,2632.7,2632.6,22.75521969]
[1724372571462,2.46770418,2632.7,2632.6,8.12756996]
[1724372571636,3.60324051,2632.7,2632.6,4.32904996]
[1724372572135,3.60324051,2632.7,2632.6,0.35518896]
[1724372572465,3.63782829,2632.7,2632.6,0.35518896]
[1724372572765,4.01914522,2632.7,2632.6,0.35518896]
[1724372573070,4.0189075,2632.7,2632.6,0.35518896]
[1724372573217,2.50205424,2632.7,2632.6,4.15370896]
[1724372573436,2.46770418,2632.7,2632.6,7.95222896]
[1724372574251,2.46770418,2632.7,2632.6,8.50222896]
[1724372576353,2.46770418,2632.7,2632.6,12.30074896]
[1724372577238,2.46770418,2632.7,2632.6,8.50222896]
[1724372580551,2.46770418,2632.7,2632.6,8.14704]
[1724372582593,2.46770418,2632.7,2632.6,4.34852]
[1724372583496,2.50166267,2632.7,2632.6,4.34852]
[1724372584775,2.50166267,2632.7,2632.6,8.14704]
[1724372585282,2.46770418,2632.7,2632.6,8.14704]
[1724372588901,2.46770418,2632.7,2632.6,9.341608]
[1724372589803,2.46770418,2632.7,2632.6,13.140128]
[1724372589804,4.18e-06,2632.7,2632.6,13.140128]
[1724372592323,4.18e-06,2632.7,2632.6,9.341608]
[1724372592621,4.18e-06,2632.7,2632.6,13.140128]
[1724372593310,4.18e-06,2632.7,2632.6,9.341608]
[1724372593499,4.18e-06,2632.7,2632.6,13.140128]
[1724372593710,4.18e-06,2632.7,2632.6,9.341608]
[1724372593881,4.18e-06,2632.7,2632.6,13.140128]
[1724372594604,4.18e-06,2632.7,2632.6,16.140128]
[1724372595961,4.18e-06,2632.7,2632.6,19.938648]
[1724372596167,4.18e-06,2632.7,2632.6,16.140128]
[1724372597868,4.18e-06,2632.7,2632.6,19.938648]
[1724372600082,5.18e-06,2632.9,2632.6,7.47109158]
[1724372600285,5.18e-06,2633.0,2632.9,15.19236]
[1724372600836,5.18e-06,2633.0,2632.9,18.74236]
[1724372601169,5.18e-06,2633.0,2632.9,14.94427]
[1724372603908,5.18e-06,2633.0,2632.9,18.74236]
[1724372604213,5.18e-06,2633.0,2632.9,21.35421615]
[1724372606712,5.18e-06,2633.0,2632.9,22.48948025]
[1724372609813,5.18e-06,2633.0,2632.9,18.69139025]
[1724372611636,5.18e-06,2633.0,2632.9,22.48948025]
[1724372612158,2.3486,2634.2,2634.1,7.59272]
[1724372612430,0.00081779,2634.5,2634.4,7.59186]
[1724372613466,0.00081779,2634.5,2634.4,3.79593]
[1724372613467,2.36321779,2634.5,2634.4,3.79593]
[1724372613765,2.36321779,2634.5,2634.2,3.79609]
[1724372613931,2.3624,2634.3,2634.2,3.79609]
[1724372614556,2.3624,2634.3,2634.2,4.34609]
[1724372614719,2.3514,2634.3,2634.2,8.1423]
[1724372616256,0.00081779,2634.5,2634.4,3.79593]
[1724372616457,0.00081779,2634.5,2634.4,8.14186]